fUST/lending_fUST_20241110
["ID","MTS","AMOUNT","RATE_DAILY","PERIOD"]
[341851795,1731253854646,-500.0,0.00025479,2]
[341851796,1731253854656,-908.34,0.00025479,2]
[341851797,1731253854665,-500.0,0.00025479,2]
[341851798,1731253854674,-1327.14,0.00025479,2]
[341851799,1731253854684,-500.0,0.00025479,2]
[341851800,1731253854693,-500.0,0.00025479,2]
[341851801,1731253854702,-500.0,0.00025479,2]
[341851802,1731253854711,-931.89,0.00025479,2]
[341851803,1731253854720,-602.88,0.00025479,2]
[341851804,1731253854729,-500.0,0.00025479,2]
[341851805,1731253854738,-200.0,0.00025479,2]
[341851806,1731253854747,-13953.42,0.00025479,2]
[341851807,1731253854756,-512.84,0.00025479,2]
[341851808,1731253854766,-1220.48,0.00025479,2]
[341851809,1731253854775,-500.0,0.00025479,2]
[341851810,1731253854784,-500.0,0.00025479,2]
[341851811,1731253854793,-581.11,0.00025479,2]
[341851812,1731253854802,-500.0,0.00025479,2]
[341851813,1731253854811,-500.0,0.00025479,2]
[341851814,1731253854821,-500.0,0.00025479,2]
[341851815,1731253854830,-535.02486235,0.00025479,2]
[341851816,1731253854840,-1088.59,0.00025479,2]
[341851817,1731253854851,-500.0,0.00025479,2]
[341851818,1731253854861,-1092.97,0.00025479,2]
[341851819,1731253854870,-500.0,0.00025479,2]
[341851820,1731253854880,-500.0,0.00025479,2]
[341851821,1731253854890,-525.63,0.00025479,2]
[341851822,1731253854903,-1925.68,0.00025479,2]
[341851823,1731253854912,-500.0,0.00025479,2]
[341851824,1731253854921,-500.0,0.00025479,2]
[341851825,1731253854931,-500.0,0.00025479,2]
[341851826,1731253854940,-500.0,0.00025479,2]
[341851827,1731253854950,-649.1,0.00025479,2]
[341851828,1731253854960,-670.55,0.00025479,2]
[341851829,1731253854970,-500.0,0.00025479,2]
[341851830,1731253854981,-500.0,0.00025479,2]
[341851831,1731253854991,-2454.06,0.00025479,2]
[341851832,1731253855000,-500.0,0.00025479,2]
[341851833,1731253855010,-1438.84,0.00025479,2]
[341851834,1731253855019,-895.47,0.00025479,2]
[341851835,1731253855028,-1092.65,0.00025479,2]
[341851836,1731253855039,-500.0,0.00025479,2]
[341851837,1731253855049,-1480.6,0.00025479,2]
[341851838,1731253855059,-1037.92,0.00025479,2]
[341851839,1731253855070,-500.0,0.00025479,2]
[341851840,1731253855080,-500.0,0.00025479,2]
[341851841,1731253855089,-500.0,0.00025479,2]
[341851842,1731253855100,-571.86,0.00025479,2]
[341851843,1731253855110,-500.0,0.00025479,2]
[341851844,1731253855119,-500.0,0.00025479,2]
[341851845,1731253855128,-524.15498662,0.00025479,2]
[341851846,1731253855141,-25.93501338,0.00025479,2]
[341851847,1731253855150,-876.75,0.00025479,2]
[341851848,1731253855159,-267.17643216,0.00025495,2]
[341851849,1731253855170,-116623.05729126,0.00025495,2]
[341851850,1731253855439,-500.0,0.00024767,2]
[341851851,1731253855450,-640.85156389,0.00024767,2]
[341851852,1731253855459,-88430.33989828,0.00025495,2]
[341851853,1731253855470,-20177.51928193,0.00025495,2]
[341851854,1731253856152,-79191.07007368,0.00025495,2]
[341851855,1731253856162,-150.112238,0.000255,14]
[341851856,1731253856172,-303.05151664,0.000255,2]
[341851857,1731253856182,-3278.4035691,0.00025505,2]
[341851858,1731253856192,-150.112233,0.000256,15]
[341851859,1731253856202,-303.05151664,0.0002575,2]
[341851860,1731253856212,-500.0,0.00025753,2]
[341851861,1731253856223,-500.0,0.00025753,2]
[341851862,1731253856233,-516.02752456,0.00025753,2]
[341851863,1731253856243,-500.0,0.00025753,2]
[341851864,1731253856252,-507.16685945,0.00025753,2]
[341851865,1731253856262,-536.88,0.00025753,2]
[341851866,1731253856272,-577.49086069,0.00025753,2]
[341851867,1731253856282,-500.0,0.00025753,2]
[341851868,1731253856291,-500.0,0.00025753,2]
[341851869,1731253856419,-500.0,0.00025753,2]
[341851870,1731253856429,-154.20523673,0.00025753,2]
[341851871,1731253856439,-500.0,0.00025753,2]
[341851872,1731253856448,-500.0,0.00025753,2]
[341851873,1731253856458,-500.0,0.00025753,2]
[341851874,1731253856468,-500.0,0.00025753,2]
[341851875,1731253856478,-500.0,0.00025753,2]
[341851876,1731253856487,-500.0,0.00025753,2]
[341851877,1731253856497,-500.0,0.00025753,2]
[341851878,1731253856507,-500.0,0.00025753,2]
[341851879,1731253856516,-500.0,0.00025753,2]
[341851880,1731253856526,-570.47716116,0.00025753,2]
[341851881,1731253856537,-571.26,0.00025753,2]
[341851882,1731253856547,-500.0,0.00025753,2]
[341851883,1731253856557,-500.0,0.00025753,2]
[341851884,1731253856567,-4034.2,0.00025753,2]
[341851885,1731253856577,-500.0,0.00025753,2]
[341851886,1731253856587,-500.0,0.00025753,2]
[341851887,1731253856596,-1065.7,0.00025753,2]
[341851888,1731253856606,-500.0,0.00025753,2]
[341851889,1731253856616,-913.68,0.00025753,2]
[341851890,1731253856625,-500.0,0.00025753,2]
[341851891,1731253856635,-500.0,0.00025753,2]
[341851892,1731253856644,-500.0,0.00025753,2]
[341851893,1731253856654,-550.6,0.00025753,2]
[341851894,1731253856663,-1542.78,0.00025753,2]
[341851895,1731253856672,-1775.07,0.00025753,2]
[341851896,1731253856681,-737.44,0.00025753,2]
[341851897,1731253856691,-3099.99,0.00025753,2]
[341851898,1731253856700,-500.0,0.00025753,2]
[341851899,1731253856710,-500.0,0.00025753,2]
[341851900,1731253856719,-500.0,0.00025753,2]
[341851901,1731253856728,-500.0,0.00025753,2]
[341851902,1731253856737,-500.0,0.00025753,2]
[341851903,1731253856747,-665.47,0.00025753,2]
[341851904,1731253856756,-500.0,0.00025753,2]
[341851905,1731253856765,-2554.57,0.00025753,2]
[341851906,1731253856774,-500.0,0.00025753,2]
[341851907,1731253856784,-500.0,0.00025753,2]
[341851908,1731253856793,-500.0,0.00025753,2]
[341851909,1731253856802,-500.0,0.00025753,2]
[341851910,1731253856811,-500.0,0.00025753,2]
[341851911,1731253856820,-500.0,0.00025753,2]
[341851912,1731253856829,-500.0,0.00025753,2]
[341851913,1731253856838,-884.37,0.00025753,2]
[341851914,1731253856849,-500.0,0.00025753,2]
[341851915,1731253856858,-773.0,0.00025753,2]
[341851916,1731253856867,-500.0,0.00025753,2]
[341851917,1731253856877,-604.66,0.00025753,2]
[341851918,1731253856886,-500.0,0.00025753,2]
[341851919,1731253856896,-517.8,0.00025753,2]
[341851920,1731253856908,-500.0,0.00025753,2]
[341851921,1731253856917,-437.785871,0.00025753,2]
[341851922,1731253856926,-500.0,0.00025753,2]
[341851923,1731253856937,-500.0,0.00025753,2]
[341851924,1731253856947,-1008.94,0.00025753,2]
[341851925,1731253856956,-500.0,0.00025753,2]
[341851926,1731253856965,-500.0,0.00025753,2]
[341851927,1731253856975,-500.0,0.00025753,2]
[341851928,1731253856984,-706.19,0.00025753,2]
[341851929,1731253856994,-794.89,0.00025753,2]
[341851930,1731253857003,-500.0,0.00025753,2]
[341851931,1731253857012,-500.0,0.00025753,2]
[341851932,1731253857021,-500.0,0.00025753,2]
[341851933,1731253857030,-500.0,0.00025753,2]
[341851934,1731253857040,-616.96,0.00025753,2]
[341851935,1731253857049,-609.07,0.00025753,2]
[341851936,1731253857059,-759.03,0.00025753,2]
[341851937,1731253857068,-340.36610184,0.00025753,2]
[341851938,1731253857078,-1114.6,0.00025753,2]
[341851939,1731253857087,-500.0,0.00025753,2]
[341851940,1731253857099,-595.69,0.00025753,2]
[341851941,1731253857108,-500.0,0.00025753,2]
[341851942,1731253857117,-636.49,0.00025753,2]
[341851943,1731253857126,-500.0,0.00025753,2]
[341851944,1731253857135,-6674.39,0.00025753,2]
[341851945,1731253857144,-500.0,0.00025753,2]
[341851946,1731253857153,-1148.62,0.00025753,2]
[341851947,1731253857163,-2336.0,0.00025753,2]
[341851948,1731253857173,-792.06,0.00025753,2]
[341851949,1731253857182,-500.0,0.00025753,2]
[341851950,1731253857192,-735.49,0.00025753,2]
[341851951,1731253857201,-500.0,0.00025753,2]
[341851952,1731253857210,-500.0,0.00025753,2]
[341851953,1731253857221,-500.0,0.00025753,2]
[341851954,1731253857231,-500.0,0.00025753,2]
[341851955,1731253857240,-500.0,0.00025753,2]
[341851956,1731253857249,-500.0,0.00025753,2]
[341851957,1731253857259,-500.0,0.00025753,2]
[341851958,1731253857268,-500.0,0.00025753,2]
[341851959,1731253857277,-500.0,0.00025753,2]
[341851960,1731253857287,-500.0,0.00025753,2]
[341851961,1731253857296,-640.68,0.00025753,2]
[341851962,1731253857305,-500.0,0.00025753,2]
[341851963,1731253857314,-500.0,0.00025753,2]
[341851964,1731253857323,-500.0,0.00025753,2]
[341851965,1731253857333,-1186.72,0.00025753,2]
[341851966,1731253857342,-359.0831172,0.00025753,2]
[341851967,1731253857354,-500.0,0.00025753,2]
[341851969,1731253857363,-393.98890895,0.00025753,2]
[341851970,1731253857372,-908.34,0.00025753,2]
[341851971,1731253857380,-500.0,0.00025753,2]
[341851972,1731253857390,-1327.14,0.00025753,2]
[341851973,1731253857399,-500.0,0.00025753,2]
[341851974,1731253857408,-500.0,0.00025753,2]
[341851975,1731253857417,-500.0,0.00025753,2]
[341851976,1731253857428,-931.89,0.00025753,2]
[341851977,1731253857437,-602.88,0.00025753,2]
[341851978,1731253857447,-500.0,0.00025753,2]
[341851979,1731253857456,-192.31922022,0.00025753,2]
[341851980,1731253857467,-13953.42,0.00025753,2]
[341851981,1731253857478,-512.84,0.00025753,2]
[341851982,1731253857489,-1220.48,0.00025753,2]
[341851983,1731253857499,-500.0,0.00025753,2]
[341851984,1731253857511,-500.0,0.00025753,2]
[341851985,1731253857521,-581.11,0.00025753,2]
[341851986,1731253857530,-500.0,0.00025753,2]
[341851987,1731253857541,-500.0,0.00025753,2]
[341851988,1731253857550,-500.0,0.00025753,2]
[341851989,1731253857559,-1088.59,0.00025753,2]
[341851990,1731253857569,-500.0,0.00025753,2]
[341851991,1731253857578,-1092.97,0.00025753,2]
[341851992,1731253857587,-500.0,0.00025753,2]
[341851993,1731253857598,-500.0,0.00025753,2]
[341851994,1731253857608,-525.63,0.00025753,2]
[341851995,1731253857617,-1925.68,0.00025753,2]
[341851996,1731253857626,-500.0,0.00025753,2]
[341851997,1731253857635,-500.0,0.00025753,2]
[341851998,1731253857644,-500.0,0.00025753,2]
[341851999,1731253857654,-500.0,0.00025753,2]
[341852000,1731253857663,-649.1,0.00025753,2]
[341852001,1731253857673,-670.55,0.00025753,2]
[341852002,1731253857682,-500.0,0.00025753,2]
[341852003,1731253857692,-500.0,0.00025753,2]
[341852004,1731253857702,-2454.06,0.00025753,2]
[341852005,1731253857711,-500.0,0.00025753,2]
[341852006,1731253857722,-1438.84,0.00025753,2]
[341852007,1731253857732,-895.47,0.00025753,2]
[341852008,1731253857741,-1092.65,0.00025753,2]
[341852009,1731253857751,-500.0,0.00025753,2]
[341852010,1731253857762,-1480.6,0.00025753,2]
[341852011,1731253857772,-1037.92,0.00025753,2]
[341852012,1731253857781,-500.0,0.00025753,2]
[341852013,1731253857790,-500.0,0.00025753,2]
[341852014,1731253857801,-500.0,0.00025753,2]
[341852015,1731253857811,-571.86,0.00025753,2]
[341852016,1731253857820,-500.0,0.00025753,2]
[341852017,1731253857830,-500.0,0.00025753,2]
[341852018,1731253857839,-550.09,0.00025753,2]
[341852019,1731253857849,-876.75,0.00025753,2]
[341852020,1731253857858,-158.86962532,0.00025778,7]
[341852021,1731253857867,-150.112233,0.000258,13]
[341852022,1731253857877,-420.0,0.00025845,2]
[341852023,1731253857886,-150.112233,0.00026,19]
[341852024,1731253857897,-303.05151664,0.00026,2]
[341852025,1731253857908,-914.5,0.00026017,3]
[341852026,1731253857918,-457.24,0.00026017,3]
[341852027,1731253857928,-500.0,0.00026027,2]
[341852028,1731253857938,-500.0,0.00026027,2]
[341852029,1731253857948,-536.88,0.00026027,2]
[341852030,1731253857958,-500.0,0.00026027,2]
[341852031,1731253857968,-500.0,0.00026027,2]
[341852032,1731253857978,-500.0,0.00026027,2]
[341852033,1731253857987,-500.0,0.00026027,2]
[341852034,1731253857997,-500.0,0.00026027,2]
[341852035,1731253858008,-500.0,0.00026027,2]
[341852036,1731253858019,-500.0,0.00026027,2]
[341852037,1731253858029,-500.0,0.00026027,2]
[341852038,1731253858038,-591.25551454,0.00026027,2]
[341852039,1731253858048,-500.0,0.00026027,2]
[341852040,1731253858058,-500.0,0.00026027,2]
[341852041,1731253858067,-400.59160968,0.00026027,2]
[341852042,1731253858078,-571.26,0.00026027,2]
[341852043,1731253858088,-500.0,0.00026027,2]
[341852044,1731253858098,-500.0,0.00026027,2]
[341852045,1731253858108,-4034.2,0.00026027,2]
[341852046,1731253858117,-500.0,0.00026027,2]
[341852047,1731253858127,-500.0,0.00026027,2]
[341852048,1731253858137,-1065.7,0.00026027,2]
[341852049,1731253858148,-500.0,0.00026027,2]
[341852050,1731253858158,-913.68,0.00026027,2]
[341852051,1731253858167,-500.0,0.00026027,2]
[341852052,1731253858176,-500.0,0.00026027,2]
[341852053,1731253858185,-500.0,0.00026027,2]
[341852054,1731253858195,-550.6,0.00026027,2]
[341852055,1731253858204,-1542.78,0.00026027,2]
[341852056,1731253858213,-1775.07,0.00026027,2]
[341852057,1731253858222,-737.44,0.00026027,2]
[341852058,1731253858232,-3099.99,0.00026027,2]
[341852059,1731253858241,-500.0,0.00026027,2]
[341852060,1731253858250,-500.0,0.00026027,2]
[341852061,1731253858259,-500.0,0.00026027,2]
[341852062,1731253858268,-500.0,0.00026027,2]
[341852063,1731253858277,-500.0,0.00026027,2]
[341852064,1731253858286,-665.47,0.00026027,2]
[341852065,1731253858295,-500.0,0.00026027,2]
[341852066,1731253858304,-2554.57,0.00026027,2]
[341852067,1731253858313,-500.0,0.00026027,2]
[341852068,1731253858323,-500.0,0.00026027,2]
[341852069,1731253858332,-500.0,0.00026027,2]
[341852070,1731253858341,-500.0,0.00026027,2]
[341852071,1731253858352,-500.0,0.00026027,2]
[341852072,1731253858361,-500.0,0.00026027,2]
[341852073,1731253858370,-884.37,0.00026027,2]
[341852074,1731253858380,-500.0,0.00026027,2]
[341852075,1731253858389,-773.0,0.00026027,2]
[341852076,1731253858398,-500.0,0.00026027,2]
[341852077,1731253858407,-604.66,0.00026027,2]
[341852078,1731253858416,-500.0,0.00026027,2]
[341852079,1731253858425,-517.8,0.00026027,2]
[341852080,1731253858434,-500.0,0.00026027,2]
[341852081,1731253858443,-500.0,0.00026027,2]
[341852082,1731253858452,-500.0,0.00026027,2]
[341852083,1731253858462,-1008.94,0.00026027,2]
[341852084,1731253858471,-500.0,0.00026027,2]
[341852085,1731253858480,-500.0,0.00026027,2]
[341852086,1731253858489,-500.0,0.00026027,2]
[341852087,1731253858498,-706.19,0.00026027,2]
[341852088,1731253858508,-794.89,0.00026027,2]
[341852089,1731253858517,-500.0,0.00026027,2]
[341852090,1731253858526,-500.0,0.00026027,2]
[341852091,1731253858536,-500.0,0.00026027,2]
[341852092,1731253858545,-500.0,0.00026027,2]
[341852093,1731253858554,-616.96,0.00026027,2]
[341852094,1731253858563,-609.07,0.00026027,2]
[341852095,1731253858572,-759.03,0.00026027,2]
[341852096,1731253858582,-1114.6,0.00026027,2]
[341852097,1731253858591,-500.0,0.00026027,2]
[341852098,1731253858602,-595.69,0.00026027,2]
[341852099,1731253858610,-500.0,0.00026027,2]
[341852100,1731253858619,-636.49,0.00026027,2]
[341852101,1731253858629,-500.0,0.00026027,2]
[341852102,1731253858638,-6674.39,0.00026027,2]
[341852103,1731253858647,-500.0,0.00026027,2]
[341852104,1731253858656,-2336.0,0.00026027,2]
[341852105,1731253858665,-1148.62,0.00026027,2]
[341852106,1731253858674,-792.06,0.00026027,2]
[341852107,1731253858683,-500.0,0.00026027,2]
[341852108,1731253858693,-735.49,0.00026027,2]
[341852109,1731253858702,-500.0,0.00026027,2]
[341852110,1731253858710,-500.0,0.00026027,2]
[341852111,1731253858720,-500.0,0.00026027,2]
[341852112,1731253858728,-500.0,0.00026027,2]
[341852113,1731253858737,-500.0,0.00026027,2]
[341852114,1731253858746,-500.0,0.00026027,2]
[341852115,1731253858756,-500.0,0.00026027,2]
[341852116,1731253858765,-500.0,0.00026027,2]
[341852117,1731253858774,-500.0,0.00026027,2]
[341852118,1731253858783,-500.0,0.00026027,2]
[341852119,1731253858793,-640.68,0.00026027,2]
[341852120,1731253858802,-500.0,0.00026027,2]
[341852121,1731253858811,-500.0,0.00026027,2]
[341852122,1731253858820,-500.0,0.00026027,2]
[341852123,1731253858830,-1186.72,0.00026027,2]
[341852124,1731253858839,-500.0,0.00026027,2]
[341852125,1731253858850,-908.34,0.00026027,2]
[341852126,1731253858859,-373.16691594,0.00026027,2]
[341852127,1731253858869,-1327.14,0.00026027,2]
[341852128,1731253858879,-361.3668048,0.00026027,2]
[341852129,1731253858888,-500.0,0.00026027,2]
[341852130,1731253858900,-500.0,0.00026027,2]
[341852131,1731253858910,-931.89,0.00026027,2]
[341852132,1731253858920,-602.88,0.00026027,2]
[341852133,1731253858930,-500.0,0.00026027,2]
[341852134,1731253858939,-13232.32012562,0.00026027,2]
[341852135,1731253858955,-721.09987438,0.00026027,2]
[341852136,1731253858964,-512.84,0.00026027,2]
[341852137,1731253858975,-1220.48,0.00026027,2]
[341852138,1731253858985,-500.0,0.00026027,2]
[341852139,1731253858994,-500.0,0.00026027,2]
[341852140,1731253859004,-581.11,0.00026027,2]
[341852141,1731253859014,-500.0,0.00026027,2]
[341852142,1731253859023,-500.0,0.00026027,2]
[341852143,1731253859032,-500.0,0.00026027,2]
[341852144,1731253859042,-1088.59,0.00026027,2]
[341852145,1731253859051,-1092.97,0.00026027,2]
[341852146,1731253859062,-500.0,0.00026027,2]
[341852147,1731253859071,-500.0,0.00026027,2]
[341852148,1731253859081,-347.0136326,0.00026027,2]
[341852149,1731253859090,-525.63,0.00026027,2]
[341852150,1731253859100,-1925.68,0.00026027,2]
[341852151,1731253859109,-500.0,0.00026027,2]
[341852152,1731253859119,-500.0,0.00026027,2]
[341852153,1731253859131,-500.0,0.00026027,2]
[341852154,1731253859140,-500.0,0.00026027,2]
[341852155,1731253859150,-649.1,0.00026027,2]
[341852156,1731253859161,-670.55,0.00026027,2]
[341852157,1731253859170,-500.0,0.00026027,2]
[341852158,1731253859179,-500.0,0.00026027,2]
[341852159,1731253859189,-2454.06,0.00026027,2]
[341852160,1731253859198,-500.0,0.00026027,2]
[341852161,1731253859207,-1438.84,0.00026027,2]
[341852162,1731253859216,-895.47,0.00026027,2]
[341852163,1731253859225,-1092.65,0.00026027,2]
[341852164,1731253859234,-500.0,0.00026027,2]
[341852165,1731253859243,-1480.6,0.00026027,2]
[341852166,1731253859252,-1037.92,0.00026027,2]
[341852167,1731253859261,-500.0,0.00026027,2]
[341852168,1731253859271,-500.0,0.00026027,2]
[341852169,1731253859280,-500.0,0.00026027,2]
[341852170,1731253859290,-571.86,0.00026027,2]
[341852171,1731253859299,-500.0,0.00026027,2]
[341852172,1731253859310,-500.0,0.00026027,2]
[341852173,1731253859320,-550.09,0.00026027,2]
[341852174,1731253859329,-876.75,0.00026027,2]
[341852175,1731253859341,-153.0,0.00026048,2]
[341852176,1731253859352,-153.0,0.00026048,2]
[341852177,1731253859361,-211.0,0.00026048,2]
[341852178,1731253859370,-211.0,0.00026048,2]
[341852179,1731253859379,-211.0,0.00026048,2]
[341852180,1731253859388,-211.0,0.00026048,2]
[341852181,1731253859398,-211.0,0.00026048,2]
[341852182,1731253859407,-211.0,0.00026048,2]
[341852183,1731253859416,-211.0,0.00026048,2]
[341852184,1731253859426,-211.0,0.00026048,2]
[341852185,1731253859435,-211.0,0.00026048,2]
[341852186,1731253859444,-211.0,0.00026048,2]
[341852187,1731253859453,-211.0,0.00026048,2]
[341852188,1731253859563,-211.0,0.00026048,2]
[341852189,1731253859590,-211.0,0.00026048,2]
[341852190,1731253859602,-211.0,0.00026048,2]
[341852191,1731253859612,-211.0,0.00026051,2]
[341852192,1731253859621,-211.0,0.00026051,2]
[341852193,1731253859631,-211.0,0.00026051,2]
[341852194,1731253859641,-211.0,0.00026051,2]
[341852195,1731253859651,-211.0,0.00026051,2]
[341852196,1731253859661,-150.112233,0.000261,14]
[341852197,1731253859670,-158.86962532,0.00026215,7]
[341852198,1731253859680,-604.37259082,0.0002625,4]
[341852199,1731253859689,-163.517766,0.00026274,2]
[341852200,1731253859700,-267.442301,0.000263,2]
[341852201,1731253859709,-500.0,0.00026301,2]
[341852202,1731253859718,-500.0,0.00026301,2]
[341852203,1731253859727,-500.0,0.00026301,2]
[341852204,1731253859737,-536.88,0.00026301,2]
[341852205,1731253859746,-500.0,0.00026301,2]
[341852206,1731253859756,-500.0,0.00026301,2]
[341852207,1731253859765,-500.0,0.00026301,2]
[341852208,1731253859775,-500.0,0.00026301,2]
[341852209,1731253859784,-500.0,0.00026301,2]
[341852210,1731253859794,-500.0,0.00026301,2]
[341852211,1731253859803,-500.0,0.00026301,2]
[341852212,1731253859812,-500.0,0.00026301,2]
[341852213,1731253859822,-326.51053373,0.00026301,2]
[341852214,1731253859831,-500.0,0.00026301,2]
[341852215,1731253859841,-571.26,0.00026301,2]
[341852216,1731253859853,-500.0,0.00026301,2]
[341852217,1731253859862,-500.0,0.00026301,2]
[341852218,1731253859872,-4034.2,0.00026301,2]
[341852219,1731253859882,-500.0,0.00026301,2]
[341852220,1731253859892,-1065.7,0.00026301,2]
[341852221,1731253859904,-500.0,0.00026301,2]
[341852222,1731253859914,-913.68,0.00026301,2]
[341852223,1731253859923,-500.0,0.00026301,2]
[341852224,1731253859934,-500.0,0.00026301,2]
[341852225,1731253859944,-500.0,0.00026301,2]
[341852226,1731253859954,-550.6,0.00026301,2]
[341852227,1731253859963,-1542.78,0.00026301,2]
[341852228,1731253859974,-1775.07,0.00026301,2]
[341852229,1731253859984,-737.44,0.00026301,2]
[341852230,1731253859993,-3099.99,0.00026301,2]
[341852231,1731253860003,-500.0,0.00026301,2]
[341852232,1731253860013,-500.0,0.00026301,2]
[341852233,1731253860022,-500.0,0.00026301,2]
[341852234,1731253860033,-500.0,0.00026301,2]
[341852235,1731253860043,-500.0,0.00026301,2]
[341852236,1731253860053,-665.47,0.00026301,2]
[341852237,1731253860063,-500.0,0.00026301,2]
[341852238,1731253860072,-2554.57,0.00026301,2]
[341852239,1731253860082,-500.0,0.00026301,2]
[341852240,1731253860092,-500.0,0.00026301,2]
[341852241,1731253860103,-500.0,0.00026301,2]
[341852242,1731253860113,-500.0,0.00026301,2]
[341852243,1731253860122,-500.0,0.00026301,2]
[341852244,1731253860132,-500.0,0.00026301,2]
[341852245,1731253860142,-884.37,0.00026301,2]
[341852246,1731253860151,-500.0,0.00026301,2]
[341852247,1731253860160,-773.0,0.00026301,2]
[341852248,1731253860170,-500.0,0.00026301,2]
[341852249,1731253860179,-604.66,0.00026301,2]
[341852250,1731253860189,-500.0,0.00026301,2]
[341852251,1731253860199,-517.8,0.00026301,2]
[341852252,1731253860208,-500.0,0.00026301,2]
[341852253,1731253860218,-441.75907152,0.00026301,2]
[341852254,1731253860228,-500.0,0.00026301,2]
[341852255,1731253860238,-1008.94,0.00026301,2]
[341852256,1731253860248,-500.0,0.00026301,2]
[341852257,1731253860257,-500.0,0.00026301,2]
[341852258,1731253860267,-706.19,0.00026301,2]
[341852259,1731253860276,-794.89,0.00026301,2]
[341852260,1731253860286,-500.0,0.00026301,2]
[341852261,1731253860295,-500.0,0.00026301,2]
[341852262,1731253860305,-500.0,0.00026301,2]
[341852263,1731253860315,-616.96,0.00026301,2]
[341852264,1731253860325,-609.07,0.00026301,2]
[341852265,1731253860334,-759.03,0.00026301,2]
[341852266,1731253860344,-1114.6,0.00026301,2]
[341852267,1731253860355,-500.0,0.00026301,2]
[341852268,1731253860364,-595.69,0.00026301,2]
[341852269,1731253860374,-500.0,0.00026301,2]
[341852270,1731253860384,-636.49,0.00026301,2]
[341852271,1731253860393,-500.0,0.00026301,2]
[341852272,1731253860403,-6674.39,0.00026301,2]
[341852273,1731253860412,-586.95618646,0.00026301,2]
[341852274,1731253860422,-2336.0,0.00026301,2]
[341852275,1731253860435,-1148.62,0.00026301,2]
[341852276,1731253860445,-792.06,0.00026301,2]
[341852277,1731253860454,-500.0,0.00026301,2]
[341852278,1731253860464,-735.49,0.00026301,2]
[341852279,1731253860473,-500.0,0.00026301,2]
[341852280,1731253860483,-500.0,0.00026301,2]
[341852281,1731253860492,-500.0,0.00026301,2]
[341852282,1731253860502,-500.0,0.00026301,2]
[341852283,1731253860512,-500.0,0.00026301,2]
[341852284,1731253860522,-500.0,0.00026301,2]
[341852285,1731253860532,-500.0,0.00026301,2]
[341852286,1731253860542,-500.0,0.00026301,2]
[341852287,1731253860553,-500.0,0.00026301,2]
[341852288,1731253860562,-500.0,0.00026301,2]
[341852289,1731253860572,-640.68,0.00026301,2]
[341852290,1731253860582,-500.0,0.00026301,2]
[341852291,1731253860591,-500.0,0.00026301,2]
[341852292,1731253860602,-500.0,0.00026301,2]
[341852293,1731253860611,-1186.72,0.00026301,2]
[341852294,1731253860621,-500.0,0.00026301,2]
[341852295,1731253860631,-908.34,0.00026301,2]